[Event "*** SCC Grand Prix: Titled Tuesday Blitz"]
[Site "Chess.com"]
[Date "2020.08.11"]
[Round "8"]
[White "Kate1606"]
[Black "mohssenbinaddi"]
[Result "1-0"]
[WhiteElo "1815"]
[BlackElo "2167"]
[TimeControl "180+1"]
[EndTime "11:32:56 PDT"]
[Termination "Kate1606 won by resignation"]

1. d4 {[%clk 0:03:00.9]} 1... Nc6 {[%clk 0:03:00.9]} 2. e4 {[%clk 0:02:50.9]}
2... e5 {[%clk 0:02:55.6]} 3. Nf3 {[%clk 0:02:47]} 3... exd4 {[%clk 0:02:55.1]}
4. Bc4 {[%clk 0:02:43.5]} 4... Bc5 {[%clk 0:02:45.8]} 5. c3 {[%clk 0:02:39]}
5... d3 {[%clk 0:02:40.1]} 6. b4 {[%clk 0:02:36.4]} 6... Be7 {[%clk 0:02:30.5]}
7. Qb3 {[%clk 0:02:29.2]} 7... d5 {[%clk 0:02:14.8]} 8. Bxd5 {[%clk 0:02:27]}
8... Bg4 {[%clk 0:01:57.2]} 9. Bxf7+ {[%clk 0:02:22.9]} 9... Kd7 {[%clk
0:01:57]} 10. b5 {[%clk 0:01:51]} 10... Na5 {[%clk 0:01:43.3]} 11. Qd5+ {[%clk
0:01:30.7]} 11... Kc8 {[%clk 0:01:42]} 12. Be6+ {[%clk 0:01:29.9]} 12... Bxe6
{[%clk 0:01:40.5]} 13. Qxe6+ {[%clk 0:01:30.8]} 13... Kb8 {[%clk 0:01:41]} 14.
O-O {[%clk 0:01:23.7]} 14... Nf6 {[%clk 0:01:40.7]} 15. Bd2 {[%clk 0:01:04.5]}
15... Re8 {[%clk 0:01:36.6]} 16. Qf5 {[%clk 0:00:44.5]} 16... g6 {[%clk
0:01:34.7]} 17. Qf4 {[%clk 0:00:36.9]} 17... Bd6 {[%clk 0:01:22.6]} 18. e5
{[%clk 0:00:36.9]} 18... Nh5 {[%clk 0:01:21.9]} 19. Qa4 {[%clk 0:00:30.4]} 19...
Bxe5 {[%clk 0:01:04.2]} 20. Qxa5 {[%clk 0:00:27.5]} 20... Rf8 {[%clk 0:00:39.3]}
21. Nxe5 {[%clk 0:00:24.4]} 1-0

[Event "*** SCC Grand Prix: Titled Tuesday Blitz"]
[Site "Chess.com"]
[Date "2020.08.11"]
[Round "8"]
[White "Susal_De_Silva"]
[Black "shnitez"]
[Result "1-0"]
[WhiteElo "2348"]
[BlackElo "2450"]
[TimeControl "180+1"]
[EndTime "11:32:58 PDT"]
[Termination "Susal_De_Silva won by resignation"]

1. e4 {[%clk 0:03:00.9]} 1... c5 {[%clk 0:02:59.7]} 2. Nf3 {[%clk 0:03:01.1]}
2... e6 {[%clk 0:02:59.6]} 3. d4 {[%clk 0:03:01.1]} 3... cxd4 {[%clk 0:03:00.5]}
4. Nxd4 {[%clk 0:03:02]} 4... a6 {[%clk 0:03:00.7]} 5. Be2 {[%clk 0:03:01.9]}
5... Nf6 {[%clk 0:02:58.1]} 6. Nc3 {[%clk 0:03:01.5]} 6... Qc7 {[%clk
0:02:54.9]} 7. O-O {[%clk 0:03:01.3]} 7... d6 {[%clk 0:02:50.7]} 8. a4 {[%clk
0:02:59]} 8... b6 {[%clk 0:02:47.8]} 9. f4 {[%clk 0:02:56.4]} 9... Nbd7 {[%clk
0:02:44.8]} 10. Bf3 {[%clk 0:02:53.6]} 10... Bb7 {[%clk 0:02:45]} 11. g4 {[%clk
0:02:48.9]} 11... e5 {[%clk 0:02:05.7]} 12. Nb3 {[%clk 0:02:38]} 12... Nc5
{[%clk 0:01:45.8]} 13. Nxc5 {[%clk 0:02:30.5]} 13... dxc5 {[%clk 0:01:39.5]} 14.
g5 {[%clk 0:02:30.3]} 14... Rd8 {[%clk 0:01:33.4]} 15. Qe1 {[%clk 0:02:26.9]}
15... Nd7 {[%clk 0:01:33.4]} 16. f5 {[%clk 0:02:23.7]} 16... c4 {[%clk
0:01:11.8]} 17. Be3 {[%clk 0:02:12.5]} 17... Bc5 {[%clk 0:01:10.8]} 18. Kh1
{[%clk 0:02:07.4]} 18... Bxe3 {[%clk 0:00:59.7]} 19. Qxe3 {[%clk 0:02:08.3]}
19... Qc5 {[%clk 0:01:00.6]} 20. Qe1 {[%clk 0:02:05.5]} 20... O-O {[%clk
0:00:57.4]} 21. Rd1 {[%clk 0:02:03]} 21... Nb8 {[%clk 0:00:57]} 22. Qh4 {[%clk
0:01:59.4]} 22... Nc6 {[%clk 0:00:42.2]} 23. f6 {[%clk 0:01:50.1]} 23... Rxd1
{[%clk 0:00:29.8]} 24. Rxd1 {[%clk 0:01:48]} 24... Nd4 {[%clk 0:00:29.6]} 25.
Bg2 {[%clk 0:01:47.4]} 25... gxf6 {[%clk 0:00:24.7]} 26. gxf6 {[%clk 0:01:45.6]}
26... Kh8 {[%clk 0:00:24.8]} 27. Nd5 {[%clk 0:01:24.1]} 27... Bxd5 {[%clk
0:00:23.5]} 28. exd5 {[%clk 0:01:25]} 28... Qd6 {[%clk 0:00:18.4]} 29. c3 {[%clk
0:01:20.1]} 29... Nb3 {[%clk 0:00:15.1]} 30. Be4 {[%clk 0:01:14.6]} 1-0

[Event "*** SCC Grand Prix: Titled Tuesday Blitz"]
[Site "Chess.com"]
[Date "2020.08.11"]
[Round "8"]
[White "arminmusovic"]
[Black "ValeriyGrinev"]
[Result "1-0"]
[WhiteElo "2517"]
[BlackElo "2626"]
[TimeControl "180+1"]
[EndTime "11:32:59 PDT"]
[Termination "arminmusovic won by resignation"]

1. a3 {[%clk 0:03:00.9]} 1... g6 {[%clk 0:02:58.6]} 2. Nc3 {[%clk 0:03:01.8]}
2... Bg7 {[%clk 0:02:59]} 3. e4 {[%clk 0:03:02.5]} 3... c5 {[%clk 0:02:58.1]} 4.
Nf3 {[%clk 0:03:02.4]} 4... Nc6 {[%clk 0:02:57.2]} 5. Bc4 {[%clk 0:03:02.9]}
5... e6 {[%clk 0:02:56.8]} 6. Ba2 {[%clk 0:03:03.3]} 6... Nge7 {[%clk 0:02:57]}
7. d3 {[%clk 0:03:03.7]} 7... O-O {[%clk 0:02:55]} 8. O-O {[%clk 0:03:04.2]}
8... d5 {[%clk 0:02:54.4]} 9. Re1 {[%clk 0:03:04.6]} 9... d4 {[%clk 0:02:53.3]}
10. Ne2 {[%clk 0:03:04.3]} 10... h6 {[%clk 0:02:50.6]} 11. h4 {[%clk 0:03:03]}
11... Kh7 {[%clk 0:02:50.7]} 12. h5 {[%clk 0:02:57.5]} 12... g5 {[%clk 0:02:50]}
13. Ng3 {[%clk 0:02:53.1]} 13... f6 {[%clk 0:02:42.2]} 14. e5 {[%clk 0:02:39.5]}
14... f5 {[%clk 0:02:41.8]} 15. Bxg5 {[%clk 0:02:31.1]} 15... hxg5 {[%clk
0:02:42.7]} 16. Nxg5+ {[%clk 0:02:31.5]} 16... Kh8 {[%clk 0:02:43.1]} 17. Bxe6
{[%clk 0:02:09.8]} 17... Nxe5 {[%clk 0:02:41.5]} 18. f4 {[%clk 0:01:59.1]} 18...
Ng4 {[%clk 0:02:38.1]} 19. Nf7+ {[%clk 0:01:30.1]} 19... Rxf7 {[%clk 0:02:36.4]}
20. Bxf7 {[%clk 0:01:31]} 20... Ne3 {[%clk 0:02:31.2]} 21. Rxe3 {[%clk
0:01:20.6]} 21... dxe3 {[%clk 0:02:31]} 22. c3 {[%clk 0:01:20.9]} 22... Qd6
{[%clk 0:02:26.2]} 23. Qf3 {[%clk 0:01:17.6]} 23... Qxd3 {[%clk 0:02:22.5]} 24.
Rd1 {[%clk 0:01:09.3]} 24... e2 {[%clk 0:02:20]} 25. Qxd3 {[%clk 0:01:03.4]}
25... exd1=Q+ {[%clk 0:02:20.1]} 26. Qxd1 {[%clk 0:01:04.3]} 26... Bf6 {[%clk
0:02:12]} 27. Qd6 {[%clk 0:00:57.8]} 27... Kg7 {[%clk 0:02:11.4]} 28. Ba2 {[%clk
0:00:55.3]} 28... b6 {[%clk 0:01:55.2]} 29. h6+ {[%clk 0:00:55.2]} 29... Kg6
{[%clk 0:01:55.7]} 30. h7 {[%clk 0:00:55.7]} 30... Bb7 {[%clk 0:01:52.2]} 31.
Bg8 {[%clk 0:00:42.5]} 31... Rxg8 {[%clk 0:01:41.6]} 32. hxg8=Q+ {[%clk
0:00:42.5]} 32... Nxg8 {[%clk 0:01:42.5]} 33. Qd7 {[%clk 0:00:41.1]} 33... Be4
{[%clk 0:01:38]} 34. Nxe4 {[%clk 0:00:41.3]} 34... fxe4 {[%clk 0:01:38.9]} 35.
Qg4+ {[%clk 0:00:41.4]} 35... Kf7 {[%clk 0:01:38.4]} 36. f5 {[%clk 0:00:41.7]}
36... Ne7 {[%clk 0:01:38.5]} 37. Qxe4 {[%clk 0:00:41.6]} 37... Kg7 {[%clk
0:01:35.3]} 38. g4 {[%clk 0:00:41.3]} 38... Bg5 {[%clk 0:01:33.5]} 39. Kf1
{[%clk 0:00:41]} 39... Kf6 {[%clk 0:01:31.7]} 40. Qe6+ {[%clk 0:00:40.8]} 40...
Kg7 {[%clk 0:01:32.3]} 41. Qd7 {[%clk 0:00:40.3]} 41... a6 {[%clk 0:01:30.8]}
42. Qb7 {[%clk 0:00:39.9]} 42... Kf6 {[%clk 0:01:28]} 43. Qxb6+ {[%clk
0:00:39.1]} 43... Ke5 {[%clk 0:01:28.9]} 44. Qe6+ {[%clk 0:00:38.4]} 44... Kf4
{[%clk 0:01:29.8]} 45. f6 {[%clk 0:00:38.9]} 45... Ng6 {[%clk 0:01:27.2]} 46.
Qf5+ {[%clk 0:00:38.8]} 46... Kg3 {[%clk 0:01:26.7]} 47. Qxg5 {[%clk 0:00:38.6]}
47... Nf8 {[%clk 0:01:27.6]} 48. Qf5 {[%clk 0:00:38.1]} 1-0

[Event "*** SCC Grand Prix: Titled Tuesday Blitz"]
[Site "Chess.com"]
[Date "2020.08.11"]
[Round "8"]
[White "chessfrendz"]
[Black "GustavoJuarezF"]
[Result "1-0"]
[WhiteElo "2264"]
[BlackElo "2031"]
[TimeControl "180+1"]
[EndTime "11:33:04 PDT"]
[Termination "chessfrendz won on time"]

1. d4 {[%clk 0:03:00.9]} 1... g6 {[%clk 0:02:48.3]} 2. c4 {[%clk 0:03:01.1]}
2... Bg7 {[%clk 0:02:47]} 3. e4 {[%clk 0:03:01.6]} 3... d6 {[%clk 0:02:46.6]} 4.
Nc3 {[%clk 0:03:00.7]} 4... Nc6 {[%clk 0:02:46.4]} 5. Be3 {[%clk 0:02:58.6]}
5... e5 {[%clk 0:02:45.1]} 6. Nge2 {[%clk 0:02:57.3]} 6... f5 {[%clk 0:02:40.6]}
7. dxe5 {[%clk 0:02:55.9]} 7... Nxe5 {[%clk 0:02:39.2]} 8. exf5 {[%clk
0:02:53.6]} 8... Bxf5 {[%clk 0:02:37.6]} 9. Nd4 {[%clk 0:02:48.3]} 9... Bd7
{[%clk 0:02:34.9]} 10. Be2 {[%clk 0:02:43]} 10... Nf6 {[%clk 0:02:32.3]} 11. h3
{[%clk 0:02:40.6]} 11... O-O {[%clk 0:02:31.3]} 12. O-O {[%clk 0:02:38.4]} 12...
Kh8 {[%clk 0:02:29.7]} 13. Qd2 {[%clk 0:02:31.3]} 13... a6 {[%clk 0:02:20.1]}
14. Rae1 {[%clk 0:02:29.1]} 14... Qe8 {[%clk 0:02:11.5]} 15. f4 {[%clk
0:02:23.9]} 15... Nc6 {[%clk 0:02:09.3]} 16. Bf3 {[%clk 0:02:18.7]} 16... Qf7
{[%clk 0:02:04.3]} 17. Nd5 {[%clk 0:02:16.9]} 17... Nxd4 {[%clk 0:01:55.6]} 18.
Bxd4 {[%clk 0:02:15.5]} 18... Bc6 {[%clk 0:01:54]} 19. Re7 {[%clk 0:02:10.7]}
19... Qg8 {[%clk 0:01:44.6]} 20. Nxc7 {[%clk 0:02:09]} 20... Rac8 {[%clk
0:01:32]} 21. Ne6 {[%clk 0:01:39.7]} 21... Rf7 {[%clk 0:01:14.4]} 22. Rxf7
{[%clk 0:01:35.2]} 22... Qxf7 {[%clk 0:01:10.9]} 23. f5 {[%clk 0:01:25.7]} 23...
gxf5 {[%clk 0:00:58.4]} 24. Nxg7 {[%clk 0:01:19.6]} 24... Qxg7 {[%clk
0:00:52.1]} 25. Bxc6 {[%clk 0:01:17.4]} 25... Rxc6 {[%clk 0:00:28.3]} 26. Rxf5
{[%clk 0:01:15.6]} 26... d5 {[%clk 0:00:27.8]} 27. Qf4 {[%clk 0:01:11.9]} 1-0

[Event "*** SCC Grand Prix: Titled Tuesday Blitz"]
[Site "Chess.com"]
[Date "2020.08.11"]
[Round "8"]
[White "szachuspl"]
[Black "Nara_Kh"]
[Result "0-1"]
[WhiteElo "2502"]
[BlackElo "2329"]
[TimeControl "180+1"]
[EndTime "11:33:05 PDT"]
[Termination "Nara_Kh won by resignation"]

1. d4 {[%clk 0:03:00.9]} 1... d5 {[%clk 0:02:59.5]} 2. c4 {[%clk 0:03:00.3]}
2... c6 {[%clk 0:02:59.5]} 3. e3 {[%clk 0:02:59.8]} 3... Nf6 {[%clk 0:02:58.4]}
4. Nf3 {[%clk 0:03:00]} 4... Bf5 {[%clk 0:02:57.7]} 5. Nbd2 {[%clk 0:02:59.9]}
5... e6 {[%clk 0:02:50.7]} 6. Be2 {[%clk 0:03:00]} 6... c5 {[%clk 0:02:50.1]} 7.
O-O {[%clk 0:02:58.3]} 7... Nc6 {[%clk 0:02:47.9]} 8. cxd5 {[%clk 0:02:57.2]}
8... exd5 {[%clk 0:02:47.3]} 9. dxc5 {[%clk 0:02:56.8]} 9... Bxc5 {[%clk
0:02:46.6]} 10. Nb3 {[%clk 0:02:55.4]} 10... Bd6 {[%clk 0:02:41.4]} 11. Nbd4
{[%clk 0:02:54.1]} 11... Bg6 {[%clk 0:02:39.3]} 12. b3 {[%clk 0:02:51.6]} 12...
O-O {[%clk 0:02:37.5]} 13. Bb2 {[%clk 0:02:51.8]} 13... a6 {[%clk 0:02:31.7]}
14. Nxc6 {[%clk 0:02:51.6]} 14... bxc6 {[%clk 0:02:31]} 15. Rc1 {[%clk
0:02:52.3]} 15... Rc8 {[%clk 0:02:25.5]} 16. Bxa6 {[%clk 0:02:40.9]} 16... Rc7
{[%clk 0:02:24.3]} 17. Bd3 {[%clk 0:02:39.8]} 17... Ne4 {[%clk 0:02:18.2]} 18.
Bxe4 {[%clk 0:02:30]} 18... Bxe4 {[%clk 0:02:14.8]} 19. Qd4 {[%clk 0:02:29.8]}
19... f6 {[%clk 0:02:09.1]} 20. Rfd1 {[%clk 0:02:14.8]} 20... Qe7 {[%clk
0:01:42.3]} 21. Bc3 {[%clk 0:02:12.8]} 21... Qf7 {[%clk 0:00:58.8]} 22. Nd2
{[%clk 0:02:05.7]} 22... c5 {[%clk 0:00:41]} 23. Qa4 {[%clk 0:02:00.2]} 23...
Ra7 {[%clk 0:00:39.2]} 24. Qc6 {[%clk 0:01:35.8]} 24... Bb8 {[%clk 0:00:03.2]}
25. Nxe4 {[%clk 0:01:33.4]} 25... dxe4 {[%clk 0:00:03.6]} 26. Rc2 {[%clk
0:01:19.2]} 26... Qh5 {[%clk 0:00:03.4]} 27. h3 {[%clk 0:01:12.1]} 27... Qxd1+
{[%clk 0:00:03.2]} 0-1

[Event "*** SCC Grand Prix: Titled Tuesday Blitz"]
[Site "Chess.com"]
[Date "2020.08.11"]
[Round "8"]
[White "MFBerna"]
[Black "NateSolon"]
[Result "1-0"]
[WhiteElo "2411"]
[BlackElo "2507"]
[TimeControl "180+1"]
[EndTime "11:33:08 PDT"]
[Termination "MFBerna won by resignation"]

1. c4 {[%clk 0:03:00.9]} 1... Nf6 {[%clk 0:02:56.2]} 2. Nf3 {[%clk 0:03:00.9]}
2... e6 {[%clk 0:02:56.1]} 3. g3 {[%clk 0:03:00.8]} 3... d5 {[%clk 0:02:56]} 4.
Bg2 {[%clk 0:03:00.3]} 4... Be7 {[%clk 0:02:55.2]} 5. b3 {[%clk 0:03:00.5]} 5...
O-O {[%clk 0:02:54.7]} 6. O-O {[%clk 0:03:00.3]} 6... b6 {[%clk 0:02:52.6]} 7.
Bb2 {[%clk 0:03:00.4]} 7... c5 {[%clk 0:02:50.9]} 8. e3 {[%clk 0:02:58.9]} 8...
Bb7 {[%clk 0:02:50.3]} 9. cxd5 {[%clk 0:02:51.4]} 9... Nxd5 {[%clk 0:02:49.2]}
10. d4 {[%clk 0:02:51]} 10... Bf6 {[%clk 0:02:45.9]} 11. Nbd2 {[%clk 0:02:48.4]}
11... cxd4 {[%clk 0:02:38]} 12. Nxd4 {[%clk 0:02:46.3]} 12... Nd7 {[%clk
0:02:33.7]} 13. Ne4 {[%clk 0:02:44.8]} 13... Be7 {[%clk 0:02:25.5]} 14. Rc1
{[%clk 0:02:44.8]} 14... Rc8 {[%clk 0:02:23.5]} 15. Qe2 {[%clk 0:02:43.5]} 15...
Nc5 {[%clk 0:02:20]} 16. Nxc5 {[%clk 0:02:36]} 16... Bxc5 {[%clk 0:02:11.1]} 17.
Rfd1 {[%clk 0:02:34.5]} 17... Qe7 {[%clk 0:02:05.6]} 18. Nf5 {[%clk 0:01:59.8]}
18... exf5 {[%clk 0:01:31.4]} 19. Bxd5 {[%clk 0:01:59.9]} 19... Bxd5 {[%clk
0:01:13.5]} 20. Rxd5 {[%clk 0:02:00.8]} 20... g6 {[%clk 0:01:04.3]} 21. Rcd1
{[%clk 0:01:53.2]} 21... Rfd8 {[%clk 0:01:00.5]} 22. Qd3 {[%clk 0:01:43.9]}
22... Rxd5 {[%clk 0:00:58.2]} 23. Qxd5 {[%clk 0:01:44.8]} 23... Re8 {[%clk
0:00:51.8]} 24. h4 {[%clk 0:01:08.6]} 24... h5 {[%clk 0:00:50.3]} 25. Qc6 {[%clk
0:00:54.9]} 25... Qe6 {[%clk 0:00:43.9]} 26. Qb7 {[%clk 0:00:43.6]} 26... a5
{[%clk 0:00:39]} 27. Qc7 {[%clk 0:00:41]} 27... Rc8 {[%clk 0:00:33.9]} 28. Rd8+
{[%clk 0:00:35.2]} 28... Rxd8 {[%clk 0:00:31.6]} 29. Qxd8+ {[%clk 0:00:36.1]}
29... Bf8 {[%clk 0:00:31.5]} 30. Ba3 {[%clk 0:00:35.1]} 1-0

[Event "*** SCC Grand Prix: Titled Tuesday Blitz"]
[Site "Chess.com"]
[Date "2020.08.11"]
[Round "8"]
[White "chigorin28"]
[Black "TST2014"]
[Result "1-0"]
[WhiteElo "2442"]
[BlackElo "2513"]
[TimeControl "180+1"]
[EndTime "11:33:09 PDT"]
[Termination "chigorin28 won on time"]

1. e4 {[%clk 0:03:00.9]} 1... c5 {[%clk 0:02:58.8]} 2. Nf3 {[%clk 0:03:00.9]}
2... Nc6 {[%clk 0:02:58.4]} 3. c3 {[%clk 0:03:01.2]} 3... Nf6 {[%clk 0:02:57.9]}
4. e5 {[%clk 0:03:01.5]} 4... Nd5 {[%clk 0:02:58.3]} 5. d4 {[%clk 0:03:01.5]}
5... cxd4 {[%clk 0:02:59.2]} 6. cxd4 {[%clk 0:03:02.4]} 6... d6 {[%clk
0:02:59.2]} 7. exd6 {[%clk 0:03:01.8]} 7... Qxd6 {[%clk 0:02:56.9]} 8. Be2
{[%clk 0:03:01.9]} 8... g6 {[%clk 0:02:53.2]} 9. O-O {[%clk 0:03:02.2]} 9... Bg7
{[%clk 0:02:53.2]} 10. Nc3 {[%clk 0:03:02]} 10... O-O {[%clk 0:02:47.6]} 11. Be3
{[%clk 0:02:59.9]} 11... Be6 {[%clk 0:02:35.2]} 12. Qd2 {[%clk 0:02:59.2]} 12...
Nxc3 {[%clk 0:02:33]} 13. bxc3 {[%clk 0:02:59]} 13... Na5 {[%clk 0:02:32.8]} 14.
Bf4 {[%clk 0:02:56.9]} 14... Qd5 {[%clk 0:02:28.8]} 15. Ng5 {[%clk 0:02:55]}
15... Bf5 {[%clk 0:02:11.6]} 16. Bf3 {[%clk 0:02:53.7]} 16... Qd7 {[%clk
0:02:09.8]} 17. Rfe1 {[%clk 0:02:48.6]} 17... Rac8 {[%clk 0:01:58.2]} 18. Ne4
{[%clk 0:02:40.4]} 18... b6 {[%clk 0:01:47.6]} 19. Ng3 {[%clk 0:02:37.6]} 19...
Be6 {[%clk 0:01:35]} 20. h4 {[%clk 0:02:32.1]} 20... Rfd8 {[%clk 0:01:29.6]} 21.
h5 {[%clk 0:02:29.8]} 21... Bf6 {[%clk 0:01:26]} 22. Ne4 {[%clk 0:02:16.1]}
22... Bg4 {[%clk 0:01:10.1]} 23. Qe2 {[%clk 0:02:12]} 23... Bxf3 {[%clk
0:01:03.7]} 24. Qxf3 {[%clk 0:02:10.9]} 24... Qf5 {[%clk 0:00:53.2]} 25. g4
{[%clk 0:02:06.4]} 25... Qd5 {[%clk 0:00:47.9]} 26. Nxf6+ {[%clk 0:01:58.2]}
26... exf6 {[%clk 0:00:47.2]} 27. Re8+ {[%clk 0:01:57.5]} 27... Rxe8 {[%clk
0:00:41.2]} 28. Qxd5 {[%clk 0:01:57.5]} 28... Rxc3 {[%clk 0:00:39.8]} 29. h6
{[%clk 0:01:55.1]} 29... Rc6 {[%clk 0:00:25.3]} 30. g5 {[%clk 0:01:50.8]} 30...
fxg5 {[%clk 0:00:17.8]} 31. Bxg5 {[%clk 0:01:46.9]} 31... Rce6 {[%clk
0:00:17.7]} 32. Rc1 {[%clk 0:01:44]} 32... Kf8 {[%clk 0:00:10.4]} 33. Kg2 {[%clk
0:01:42.5]} 33... f6 {[%clk 0:00:09.2]} 34. Bf4 {[%clk 0:01:39.7]} 34... Kf7
{[%clk 0:00:08.7]} 35. Rc7+ {[%clk 0:01:38.5]} 35... Re7 {[%clk 0:00:09.2]} 36.
Rc8 {[%clk 0:01:32.1]} 36... g5 {[%clk 0:00:08.4]} 37. Bd6 {[%clk 0:01:29.6]}
37... Rd7 {[%clk 0:00:07.8]} 38. Rf8+ {[%clk 0:01:24.6]} 1-0

[Event "*** SCC Grand Prix: Titled Tuesday Blitz"]
[Site "Chess.com"]
[Date "2020.08.11"]
[Round "8"]
[White "Harsha_Bharathakoti"]
[Black "GoltsevDmitry2000"]
[Result "0-1"]
[WhiteElo "2828"]
[BlackElo "2632"]
[TimeControl "180+1"]
[EndTime "11:33:17 PDT"]
[Termination "GoltsevDmitry2000 won by resignation"]

1. e4 {[%clk 0:03:00.9]} 1... c5 {[%clk 0:02:53]} 2. c3 {[%clk 0:03:01.3]} 2...
e6 {[%clk 0:02:53.3]} 3. d4 {[%clk 0:03:01.2]} 3... cxd4 {[%clk 0:02:53.6]} 4.
cxd4 {[%clk 0:03:02.1]} 4... d5 {[%clk 0:02:53.8]} 5. e5 {[%clk 0:03:02.1]} 5...
Nc6 {[%clk 0:02:54]} 6. Nf3 {[%clk 0:03:00.3]} 6... Nge7 {[%clk 0:02:54]} 7. a3
{[%clk 0:02:53.4]} 7... Nf5 {[%clk 0:02:49.8]} 8. b4 {[%clk 0:02:54.1]} 8... a6
{[%clk 0:02:49.6]} 9. Bb2 {[%clk 0:02:52.8]} 9... Bd7 {[%clk 0:02:49.3]} 10. Bd3
{[%clk 0:02:52.2]} 10... g6 {[%clk 0:02:48.7]} 11. O-O {[%clk 0:02:46.1]} 11...
h5 {[%clk 0:02:48.2]} 12. Nbd2 {[%clk 0:02:46.4]} 12... Rc8 {[%clk 0:02:48.1]}
13. Nb3 {[%clk 0:02:47]} 13... Na7 {[%clk 0:02:45.4]} 14. Nc5 {[%clk 0:02:45.2]}
14... Bxc5 {[%clk 0:02:43.4]} 15. dxc5 {[%clk 0:02:46.1]} 15... Bb5 {[%clk
0:02:19.7]} 16. Bc1 {[%clk 0:02:19.9]} 16... Qd7 {[%clk 0:02:02.3]} 17. Bg5
{[%clk 0:02:14.2]} 17... Bxd3 {[%clk 0:01:59.6]} 18. Qxd3 {[%clk 0:02:15.1]}
18... Qb5 {[%clk 0:01:58.6]} 19. Qd2 {[%clk 0:02:07.4]} 19... Kd7 {[%clk
0:01:55.5]} 20. Bf6 {[%clk 0:02:02]} 20... Rhf8 {[%clk 0:01:53.2]} 21. a4 {[%clk
0:02:02.5]} 21... Qc4 {[%clk 0:01:40.3]} 22. Rfc1 {[%clk 0:01:56.2]} 22... Qe4
{[%clk 0:01:32.8]} 23. Rc2 {[%clk 0:01:42.5]} 23... Nc6 {[%clk 0:01:09.4]} 24.
b5 {[%clk 0:01:40.9]} 24... Ncd4 {[%clk 0:01:05.6]} 25. Nxd4 {[%clk 0:01:31.2]}
25... Qxd4 {[%clk 0:00:48.6]} 26. Qc1 {[%clk 0:01:21.3]} 26... axb5 {[%clk
0:00:33.4]} 27. axb5 {[%clk 0:01:22.2]} 27... Ra8 {[%clk 0:00:33.4]} 28. c6+
{[%clk 0:01:22.8]} 28... bxc6 {[%clk 0:00:32]} 29. bxc6+ {[%clk 0:01:20.3]}
29... Kc7 {[%clk 0:00:32.2]} 30. Rb1 {[%clk 0:01:19.7]} 30... Rfb8 {[%clk
0:00:32]} 31. Rb7+ {[%clk 0:01:19.1]} 31... Kc8 {[%clk 0:00:19.5]} 32. Rxf7
{[%clk 0:01:19.3]} 32... Ra1 {[%clk 0:00:17.4]} 33. c7 {[%clk 0:01:19.5]} 33...
Qd1+ {[%clk 0:00:15.3]} 0-1

[Event "*** SCC Grand Prix: Titled Tuesday Blitz"]
[Site "Chess.com"]
[Date "2020.08.11"]
[Round "8"]
[White "a3aki"]
[Black "eightbyeightchess"]
[Result "0-1"]
[WhiteElo "2111"]
[BlackElo "2444"]
[TimeControl "180+1"]
[EndTime "11:33:18 PDT"]
[Termination "eightbyeightchess won by checkmate"]

1. e4 {[%clk 0:03:00.9]} 1... e6 {[%clk 0:02:58.6]} 2. d4 {[%clk 0:03:00.7]}
2... d5 {[%clk 0:02:57.6]} 3. Nc3 {[%clk 0:03:01]} 3... Nf6 {[%clk 0:02:57.2]}
4. Bg5 {[%clk 0:02:58.5]} 4... Be7 {[%clk 0:02:56.9]} 5. e5 {[%clk 0:02:54.2]}
5... Nfd7 {[%clk 0:02:57.1]} 6. h4 {[%clk 0:02:54.7]} 6... a6 {[%clk 0:02:56.2]}
7. Qg4 {[%clk 0:02:45.8]} 7... Bxg5 {[%clk 0:02:55.3]} 8. hxg5 {[%clk
0:02:43.9]} 8... c5 {[%clk 0:02:55.7]} 9. Nf3 {[%clk 0:02:41.4]} 9... Nc6 {[%clk
0:02:53.6]} 10. Bd3 {[%clk 0:02:35.9]} 10... cxd4 {[%clk 0:02:49.7]} 11. Nxd4
{[%clk 0:02:22.7]} 11... Ndxe5 {[%clk 0:02:43.5]} 12. Qf4 {[%clk 0:02:15.7]}
12... Nxd3+ {[%clk 0:02:37.5]} 13. cxd3 {[%clk 0:02:14.7]} 13... Nxd4 {[%clk
0:02:37.9]} 14. Qxd4 {[%clk 0:02:11.6]} 14... Qxg5 {[%clk 0:02:38.1]} 15. g3
{[%clk 0:02:00.8]} 15... O-O {[%clk 0:02:29.4]} 16. Ne2 {[%clk 0:01:58.2]} 16...
e5 {[%clk 0:02:14]} 17. Qxd5 {[%clk 0:01:55.7]} 17... Be6 {[%clk 0:02:13.9]} 18.
Qf3 {[%clk 0:01:52.2]} 18... Rfd8 {[%clk 0:02:08.6]} 19. Rh5 {[%clk 0:01:30.7]}
19... Qg6 {[%clk 0:02:06.2]} 20. Rxe5 {[%clk 0:01:28.6]} 20... Rxd3 {[%clk
0:02:00.5]} 21. Re3 {[%clk 0:01:27.7]} 21... Rxe3 {[%clk 0:01:48.5]} 22. Qxe3
{[%clk 0:01:27.4]} 22... Rc8 {[%clk 0:01:39.7]} 23. Rc1 {[%clk 0:01:26.1]} 23...
Rxc1+ {[%clk 0:01:34.9]} 24. Qxc1 {[%clk 0:01:24.8]} 24... Qe4 {[%clk
0:01:28.4]} 25. Qc3 {[%clk 0:01:08.2]} 25... Bc4 {[%clk 0:01:24]} 26. Qe3 {[%clk
0:00:38.1]} 26... Qxe3 {[%clk 0:01:20.5]} 27. fxe3 {[%clk 0:00:39]} 27... Bxe2
{[%clk 0:01:20.6]} 28. Kxe2 {[%clk 0:00:39.6]} 28... h5 {[%clk 0:01:19.5]} 29.
Kd3 {[%clk 0:00:39.4]} 29... Kf8 {[%clk 0:01:09.5]} 30. Kd4 {[%clk 0:00:39]}
30... Ke7 {[%clk 0:01:08.4]} 31. Kc5 {[%clk 0:00:31.4]} 31... Ke6 {[%clk
0:01:02.2]} 32. Kb6 {[%clk 0:00:29.2]} 32... g5 {[%clk 0:01:01.7]} 33. Kxb7
{[%clk 0:00:28.7]} 33... h4 {[%clk 0:01:01.8]} 34. gxh4 {[%clk 0:00:28.3]} 34...
gxh4 {[%clk 0:01:02.7]} 35. Kxa6 {[%clk 0:00:27.8]} 35... h3 {[%clk 0:01:03.6]}
36. b4 {[%clk 0:00:28.1]} 36... h2 {[%clk 0:01:04.5]} 37. b5 {[%clk 0:00:28.5]}
37... h1=Q {[%clk 0:01:05.4]} 38. b6 {[%clk 0:00:29.1]} 38... Qa8+ {[%clk
0:01:05]} 39. Kb5 {[%clk 0:00:29]} 39... Qxa2 {[%clk 0:01:05.1]} 40. b7 {[%clk
0:00:28.6]} 40... Qb3+ {[%clk 0:01:05]} 41. Ka6 {[%clk 0:00:28.8]} 41... Kd7
{[%clk 0:01:02.9]} 42. e4 {[%clk 0:00:25.1]} 42... Kc7 {[%clk 0:01:03]} 43.
b8=Q+ {[%clk 0:00:19.3]} 43... Qxb8 {[%clk 0:01:01.4]} 44. e5 {[%clk 0:00:20.2]}
44... Qb6# {[%clk 0:01:01.2]} 0-1